[Event "Late-Titled-Tuesday-Blitz-May-14-2024"]
[Site "Chess.com"]
[Date "2024.05.14"]
[Round "3"]
[White "Pitomina"]
[Black "familijatop71"]
[Result "1-0"]
[WhiteElo "2530"]
[BlackElo "2310"]
[TimeControl "180+1"]
[EndTime "14:28:54 PDT"]
[Termination "Pitomina won on time"]

1. d4 {[%clk 0:02:58.7]} 1... Nf6 {[%clk 0:02:59.1]} 2. c4 {[%clk 0:02:57.4]}
2... e6 {[%clk 0:02:59.1]} 3. Nf3 {[%clk 0:02:54.1]} 3... d5 {[%clk 0:02:58]} 4.
Nc3 {[%clk 0:02:49.8]} 4... Be7 {[%clk 0:02:57.3]} 5. Bg5 {[%clk 0:02:46.8]}
5... O-O {[%clk 0:02:55.5]} 6. e3 {[%clk 0:02:46.4]} 6... h6 {[%clk 0:02:53.9]}
7. Bh4 {[%clk 0:02:44.3]} 7... b6 {[%clk 0:02:52.9]} 8. Bxf6 {[%clk 0:02:41.4]}
8... Bxf6 {[%clk 0:02:47]} 9. cxd5 {[%clk 0:02:42.3]} 9... exd5 {[%clk
0:02:46.1]} 10. Be2 {[%clk 0:02:39.5]} 10... Be6 {[%clk 0:02:29.5]} 11. O-O
{[%clk 0:02:32.9]} 11... c5 {[%clk 0:02:14.6]} 12. Rc1 {[%clk 0:02:26.7]} 12...
Nd7 {[%clk 0:01:45.7]} 13. Qd2 {[%clk 0:01:40.7]} 13... Be7 {[%clk 0:01:29.6]}
14. Rfd1 {[%clk 0:01:36.7]} 14... Nf6 {[%clk 0:01:25.9]} 15. Ne5 {[%clk
0:01:33.2]} 15... c4 {[%clk 0:00:39.7]} 16. Nc6 {[%clk 0:01:26.9]} 16... Qd7
{[%clk 0:00:36.2]} 17. Nxe7+ {[%clk 0:01:27.8]} 17... Qxe7 {[%clk 0:00:36.3]}
18. Bf3 {[%clk 0:01:28.1]} 18... a6 {[%clk 0:00:27.2]} 19. a4 {[%clk 0:01:27.8]}
19... Rab8 {[%clk 0:00:19.9]} 20. Ra1 {[%clk 0:01:26.4]} 20... b5 {[%clk
0:00:16.3]} 21. axb5 {[%clk 0:01:27.3]} 21... axb5 {[%clk 0:00:16.4]} 22. Ra5
{[%clk 0:01:27.9]} 22... Qd7 {[%clk 0:00:07.1]} 23. b4 {[%clk 0:01:15.1]} 23...
cxb3 {[%clk 0:00:05.7]} 24. Qb2 {[%clk 0:01:15.5]} 24... Ne4 {[%clk 0:00:05]}
25. Qxb3 {[%clk 0:01:00.9]} 25... Rfc8 {[%clk 0:00:04.3]} 26. Bxe4 {[%clk
0:00:58]} 26... dxe4 {[%clk 0:00:04.2]} 27. d5 {[%clk 0:00:58.9]} 27... Bf5
{[%clk 0:00:02.6]} 28. Rxb5 {[%clk 0:00:53.6]} 28... Rxb5 {[%clk 0:00:01.7]} 29.
Nxb5 {[%clk 0:00:54.5]} 29... Rd8 {[%clk 0:00:01.4]} 30. Nc3 {[%clk 0:00:47.5]}
30... Rc8 {[%clk 0:00:01.3]} 31. h3 {[%clk 0:00:44.4]} 31... Bg6 {[%clk
0:00:01.5]} 32. Ne2 {[%clk 0:00:44.2]} 32... Rd8 {[%clk 0:00:00.4]} 33. Nf4
{[%clk 0:00:44]} 33... Bf5 {[%clk 0:00:00.8]} 34. d6 {[%clk 0:00:43.7]} 34... g5
{[%clk 0:00:00.5]} 35. Nh5 {[%clk 0:00:41.5]} 1-0

[Event "Late-Titled-Tuesday-Blitz-May-14-2024"]
[Site "Chess.com"]
[Date "2024.05.14"]
[Round "3"]
[White "JG-17"]
[Black "LiemLe"]
[Result "0-1"]
[WhiteElo "2546"]
[BlackElo "3038"]
[TimeControl "180+1"]
[EndTime "14:28:58 PDT"]
[Termination "LiemLe won by resignation"]

1. e4 {[%clk 0:03:00.9]} 1... c6 {[%clk 0:02:59.8]} 2. d4 {[%clk 0:03:00.7]}
2... d5 {[%clk 0:03:00.7]} 3. exd5 {[%clk 0:03:01.2]} 3... cxd5 {[%clk
0:03:01.6]} 4. Bd3 {[%clk 0:03:01.6]} 4... Nc6 {[%clk 0:02:58.1]} 5. c3 {[%clk
0:03:01.4]} 5... e6 {[%clk 0:02:56.9]} 6. Bf4 {[%clk 0:02:59.9]} 6... Nge7
{[%clk 0:02:53.1]} 7. Nf3 {[%clk 0:02:58.9]} 7... Ng6 {[%clk 0:02:53.1]} 8. Bg3
{[%clk 0:02:58.1]} 8... Bd6 {[%clk 0:02:46.4]} 9. Nbd2 {[%clk 0:02:50.1]} 9...
Nf4 {[%clk 0:02:46]} 10. Bxf4 {[%clk 0:02:42.3]} 10... Bxf4 {[%clk 0:02:46.9]}
11. O-O {[%clk 0:02:41.3]} 11... O-O {[%clk 0:02:46.5]} 12. Re1 {[%clk
0:02:41.1]} 12... Bd7 {[%clk 0:02:41.5]} 13. Ne5 {[%clk 0:02:40.6]} 13... Nxe5
{[%clk 0:02:41.2]} 14. dxe5 {[%clk 0:02:40.7]} 14... f6 {[%clk 0:02:28.4]} 15.
g3 {[%clk 0:02:35]} 15... Bxe5 {[%clk 0:01:31.8]} 16. Qh5 {[%clk 0:02:22.4]}
16... g6 {[%clk 0:01:30.3]} 17. Bxg6 {[%clk 0:02:21.5]} 17... Qe7 {[%clk
0:01:31]} 18. Bd3 {[%clk 0:02:08.9]} 18... Qg7 {[%clk 0:01:30.9]} 19. f4 {[%clk
0:01:57.7]} 19... Bxf4 {[%clk 0:01:27.5]} 20. Qxh7+ {[%clk 0:01:57.5]} 20...
Qxh7 {[%clk 0:01:27.5]} 21. Bxh7+ {[%clk 0:01:58.4]} 21... Kxh7 {[%clk
0:01:28.2]} 22. gxf4 {[%clk 0:01:59.1]} 22... Rg8+ {[%clk 0:01:23.8]} 23. Kf2
{[%clk 0:01:59.5]} 23... Rg4 {[%clk 0:01:23.4]} 24. Ke3 {[%clk 0:01:36.1]} 24...
Rag8 {[%clk 0:01:23.9]} 25. Nf3 {[%clk 0:01:32.8]} 25... Rg2 {[%clk 0:01:14.9]}
26. Rab1 {[%clk 0:01:17.1]} 26... Rc2 {[%clk 0:00:53.1]} 27. Re2 {[%clk
0:01:04.5]} 27... Rxe2+ {[%clk 0:00:51.9]} 28. Kxe2 {[%clk 0:01:05.4]} 28...
Rg2+ {[%clk 0:00:51.8]} 29. Ke3 {[%clk 0:01:03.3]} 29... Be8 {[%clk 0:00:46.6]}
30. a3 {[%clk 0:00:53.8]} 30... Bg6 {[%clk 0:00:45.8]} 31. Nh4 {[%clk 0:00:41]}
31... Rxh2 {[%clk 0:00:43.4]} 32. Nxg6 {[%clk 0:00:41.1]} 32... Kxg6 {[%clk
0:00:44.3]} 33. Kd4 {[%clk 0:00:38.1]} 33... b6 {[%clk 0:00:39.9]} 34. b4 {[%clk
0:00:32.9]} 34... Kf5 {[%clk 0:00:39.8]} 35. a4 {[%clk 0:00:23.5]} 35... Rh4
{[%clk 0:00:35.5]} 36. a5 {[%clk 0:00:21.1]} 36... Rxf4+ {[%clk 0:00:35.6]} 37.
Ke3 {[%clk 0:00:21.1]} 37... bxa5 {[%clk 0:00:35.6]} 38. bxa5 {[%clk 0:00:21.2]}
38... Ra4 {[%clk 0:00:36]} 39. Rb5 {[%clk 0:00:20.4]} 39... Ke5 {[%clk
0:00:36.2]} 40. Kd3 {[%clk 0:00:18.9]} 40... f5 {[%clk 0:00:34.6]} 41. Ke3
{[%clk 0:00:16]} 41... a6 {[%clk 0:00:34.3]} 42. Rc5 {[%clk 0:00:15.6]} 42...
Rc4 {[%clk 0:00:33.5]} 0-1

[Event "Late-Titled-Tuesday-Blitz-May-14-2024"]
[Site "Chess.com"]
[Date "2024.05.14"]
[Round "3"]
[White "DrVelja"]
[Black "Hamisandwich"]
[Result "0-1"]
[WhiteElo "2900"]
[BlackElo "2742"]
[TimeControl "180+1"]
[EndTime "14:28:59 PDT"]
[Termination "Hamisandwich won on time"]

1. e4 {[%clk 0:03:00.9]} 1... g6 {[%clk 0:02:58.2]} 2. d4 {[%clk 0:03:00.6]}
2... d6 {[%clk 0:02:58.4]} 3. Nc3 {[%clk 0:03:01]} 3... c6 {[%clk 0:02:58.6]} 4.
f4 {[%clk 0:03:00.3]} 4... d5 {[%clk 0:02:58.6]} 5. e5 {[%clk 0:03:00]} 5... h5
{[%clk 0:02:59.3]} 6. Nf3 {[%clk 0:03:00.7]} 6... Bg4 {[%clk 0:02:59.6]} 7. Be2
{[%clk 0:03:01.2]} 7... e6 {[%clk 0:02:56.3]} 8. O-O {[%clk 0:03:01.4]} 8... Nh6
{[%clk 0:02:53.9]} 9. h3 {[%clk 0:02:56.4]} 9... Bxf3 {[%clk 0:02:53]} 10. Bxf3
{[%clk 0:02:57.3]} 10... Nf5 {[%clk 0:02:45.8]} 11. Ne2 {[%clk 0:02:57.8]} 11...
h4 {[%clk 0:02:44]} 12. Qd3 {[%clk 0:02:53]} 12... Nd7 {[%clk 0:02:43.7]} 13. b3
{[%clk 0:02:44.8]} 13... Qb6 {[%clk 0:02:30.5]} 14. c4 {[%clk 0:02:38.3]} 14...
Qa6 {[%clk 0:02:29.9]} 15. Qc2 {[%clk 0:02:32.6]} 15... dxc4 {[%clk 0:02:12.7]}
16. bxc4 {[%clk 0:02:30.3]} 16... Nb6 {[%clk 0:02:13.3]} 17. Rb1 {[%clk
0:01:55.9]} 17... Rd8 {[%clk 0:02:13.2]} 18. c5 {[%clk 0:01:27.5]} 18... Nd5
{[%clk 0:02:09.4]} 19. Rb3 {[%clk 0:01:18.8]} 19... Qa4 {[%clk 0:01:46.8]} 20.
Qb2 {[%clk 0:00:52.8]} 20... b5 {[%clk 0:01:22]} 21. Bxd5 {[%clk 0:00:24]} 21...
Rxd5 {[%clk 0:01:03.5]} 22. Rb4 {[%clk 0:00:21.8]} 22... Qa5 {[%clk 0:00:58.5]}
23. a4 {[%clk 0:00:22.7]} 23... a6 {[%clk 0:00:56.1]} 24. Bd2 {[%clk 0:00:15.3]}
24... Qd8 {[%clk 0:00:53.8]} 25. axb5 {[%clk 0:00:15.8]} 25... axb5 {[%clk
0:00:54.7]} 26. Ra1 {[%clk 0:00:15]} 26... Be7 {[%clk 0:00:46.4]} 27. Ra6 {[%clk
0:00:10.9]} 27... Bxc5 {[%clk 0:00:45.8]} 28. Rxc6 {[%clk 0:00:06.5]} 28... Nxd4
{[%clk 0:00:39.6]} 29. Nxd4 {[%clk 0:00:06.5]} 29... Bxd4+ {[%clk 0:00:40.5]}
30. Rxd4 {[%clk 0:00:07.1]} 30... Rxd4 {[%clk 0:00:40.6]} 31. Bb4 {[%clk
0:00:06.8]} 31... Rd1+ {[%clk 0:00:35.5]} 32. Kh2 {[%clk 0:00:06.7]} 32... Qd3
{[%clk 0:00:36.1]} 33. Rc3 {[%clk 0:00:03.4]} 33... Qf1 {[%clk 0:00:36.5]} 34.
Rc8+ {[%clk 0:00:01.9]} 34... Kd7 {[%clk 0:00:36.4]} 0-1

[Event "Late-Titled-Tuesday-Blitz-May-14-2024"]
[Site "Chess.com"]
[Date "2024.05.14"]
[Round "3"]
[White "bubeliang"]
[Black "MagnusCarlsen"]
[Result "0-1"]
[WhiteElo "2812"]
[BlackElo "3219"]
[TimeControl "180+1"]
[EndTime "14:29:00 PDT"]
[Termination "MagnusCarlsen won by resignation"]

1. e4 {[%clk 0:03:00.9]} 1... e6 {[%clk 0:03:00.1]} 2. d4 {[%clk 0:02:58.2]}
2... a6 {[%clk 0:03:00.7]} 3. Nf3 {[%clk 0:02:54.3]} 3... d5 {[%clk 0:03:00.6]}
4. exd5 {[%clk 0:02:54.4]} 4... exd5 {[%clk 0:03:00.6]} 5. Bd3 {[%clk
0:02:55.1]} 5... Bd6 {[%clk 0:03:00.2]} 6. O-O {[%clk 0:02:53.7]} 6... Ne7
{[%clk 0:03:00.6]} 7. Re1 {[%clk 0:02:51.8]} 7... O-O {[%clk 0:03:00.5]} 8. Nbd2
{[%clk 0:02:50.1]} 8... Bf5 {[%clk 0:02:59.6]} 9. Nf1 {[%clk 0:02:49.9]} 9...
Nbc6 {[%clk 0:02:54.8]} 10. c3 {[%clk 0:02:49.4]} 10... Qd7 {[%clk 0:02:54.6]}
11. Qc2 {[%clk 0:02:44.9]} 11... Rae8 {[%clk 0:02:51.3]} 12. Bd2 {[%clk
0:02:44.7]} 12... Bxd3 {[%clk 0:02:51]} 13. Qxd3 {[%clk 0:02:44.4]} 13... Qf5
{[%clk 0:02:51.6]} 14. Qxf5 {[%clk 0:02:44.3]} 14... Nxf5 {[%clk 0:02:52.5]} 15.
Ne3 {[%clk 0:02:44.6]} 15... Nxe3 {[%clk 0:02:52.5]} 16. Rxe3 {[%clk 0:02:44.6]}
16... Rxe3 {[%clk 0:02:52.3]} 17. Bxe3 {[%clk 0:02:45.5]} 17... f6 {[%clk
0:02:52.7]} 18. Kf1 {[%clk 0:02:45.6]} 18... Kf7 {[%clk 0:02:52.5]} 19. h3
{[%clk 0:02:45.6]} 19... g5 {[%clk 0:02:51.1]} 20. Re1 {[%clk 0:02:44.6]} 20...
h5 {[%clk 0:02:51]} 21. g4 {[%clk 0:02:43.7]} 21... Rh8 {[%clk 0:02:50.9]} 22.
Kg2 {[%clk 0:02:43.4]} 22... Ne7 {[%clk 0:02:46.5]} 23. Bd2 {[%clk 0:02:29.1]}
23... Ng6 {[%clk 0:02:46.5]} 24. Rg1 {[%clk 0:02:29]} 24... b5 {[%clk
0:02:45.9]} 25. b3 {[%clk 0:02:24.7]} 25... Bf4 {[%clk 0:02:36]} 26. Be3 {[%clk
0:02:14.8]} 26... a5 {[%clk 0:02:35.4]} 27. c4 {[%clk 0:02:13.4]} 27... bxc4
{[%clk 0:02:15.6]} 28. bxc4 {[%clk 0:02:14.3]} 28... hxg4 {[%clk 0:02:14.3]} 29.
hxg4 {[%clk 0:02:12.2]} 29... Re8 {[%clk 0:02:14.7]} 30. Re1 {[%clk 0:01:58.9]}
30... dxc4 {[%clk 0:02:14.3]} 31. Nd2 {[%clk 0:01:53]} 31... c3 {[%clk
0:02:13.9]} 32. Nc4 {[%clk 0:01:52.8]} 32... Bxe3 {[%clk 0:02:12.5]} 33. Nxe3
{[%clk 0:01:34.4]} 33... Nf4+ {[%clk 0:02:13.4]} 34. Kf3 {[%clk 0:01:34.8]}
34... Nd3 {[%clk 0:02:12.7]} 35. Rh1 {[%clk 0:01:34.6]} 35... Kg6 {[%clk
0:02:00.8]} 36. Ke2 {[%clk 0:01:29.8]} 36... Nf4+ {[%clk 0:01:56.9]} 37. Kf3
{[%clk 0:01:27.9]} 37... Rd8 {[%clk 0:01:48.4]} 38. Rc1 {[%clk 0:01:26.2]} 38...
Rxd4 {[%clk 0:01:45.6]} 39. Rxc3 {[%clk 0:01:25]} 39... Ne6 {[%clk 0:01:43.8]}
40. Rc6 {[%clk 0:01:19.9]} 40... Kf7 {[%clk 0:01:39.7]} 41. Kg3 {[%clk
0:01:07.2]} 41... Ra4 {[%clk 0:01:39.3]} 42. Nd5 {[%clk 0:01:03.5]} 42... Rxa2
{[%clk 0:01:38.3]} 43. Nxc7 {[%clk 0:01:01.3]} 43... Ra3+ {[%clk 0:01:38.7]} 44.
Kh2 {[%clk 0:00:59.1]} 44... Nd4 {[%clk 0:01:37.9]} 45. Ra6 {[%clk 0:00:53.2]}
45... Nf3+ {[%clk 0:01:34.3]} 46. Kg2 {[%clk 0:00:47]} 46... Ne5 {[%clk
0:01:34.6]} 47. Nb5 {[%clk 0:00:41.2]} 47... Ra1 {[%clk 0:01:26]} 48. f3 {[%clk
0:00:40.6]} 48... Ra2+ {[%clk 0:01:20.6]} 49. Kg3 {[%clk 0:00:40.4]} 49... Nd3
{[%clk 0:01:11]} 50. Nd6+ {[%clk 0:00:37.9]} 50... Kg6 {[%clk 0:01:09.4]} 51. f4
{[%clk 0:00:18.1]} 51... gxf4+ {[%clk 0:01:09.1]} 52. Kf3 {[%clk 0:00:18.5]}
52... Rf2+ {[%clk 0:01:09.1]} 53. Ke4 {[%clk 0:00:18.7]} 53... Nc5+ {[%clk
0:01:10]} 0-1

[Event "Late-Titled-Tuesday-Blitz-May-14-2024"]
[Site "Chess.com"]
[Date "2024.05.14"]
[Round "3"]
[White "TheBigBadChessDad"]
[Black "The_Straightforward_Rook"]
[Result "0-1"]
[WhiteElo "2284"]
[BlackElo "2496"]
[TimeControl "180+1"]
[EndTime "14:29:00 PDT"]
[Termination "The_Straightforward_Rook won on time"]

1. e4 {[%clk 0:03:00.9]} 1... e6 {[%clk 0:02:58]} 2. d4 {[%clk 0:02:59.6]} 2...
d5 {[%clk 0:02:58.2]} 3. Nc3 {[%clk 0:02:59.5]} 3... Bb4 {[%clk 0:02:58.3]} 4.
e5 {[%clk 0:02:58.5]} 4... c5 {[%clk 0:02:57.5]} 5. Bd2 {[%clk 0:02:56.7]} 5...
Nc6 {[%clk 0:02:51.9]} 6. dxc5 {[%clk 0:02:54.5]} 6... Nxe5 {[%clk 0:02:44.5]}
7. Qe2 {[%clk 0:02:45.7]} 7... Nc6 {[%clk 0:02:35.4]} 8. O-O-O {[%clk
0:02:34.9]} 8... Nge7 {[%clk 0:02:35.1]} 9. Na4 {[%clk 0:02:26.2]} 9... Bxd2+
{[%clk 0:02:31.8]} 10. Rxd2 {[%clk 0:02:26.4]} 10... Qa5 {[%clk 0:02:30.1]} 11.
b3 {[%clk 0:02:23.7]} 11... O-O {[%clk 0:02:28.9]} 12. Nf3 {[%clk 0:02:23]}
12... Bd7 {[%clk 0:02:25.7]} 13. Qb5 {[%clk 0:02:21]} 13... Rfc8 {[%clk
0:02:12]} 14. Qxb7 {[%clk 0:02:08.3]} 14... Qd8 {[%clk 0:01:44.6]} 15. Qa6
{[%clk 0:02:01.2]} 15... Nb4 {[%clk 0:01:43.1]} 16. Qe2 {[%clk 0:01:59]} 16...
Bxa4 {[%clk 0:01:41.9]} 17. bxa4 {[%clk 0:01:56.7]} 17... Rxc5 {[%clk
0:01:40.3]} 18. Nd4 {[%clk 0:01:50.1]} 18... Nxa2+ {[%clk 0:01:39]} 19. Kb2
{[%clk 0:01:48.4]} 19... Nc3 {[%clk 0:01:36.2]} 20. Qa6 {[%clk 0:01:45.7]} 20...
Ra5 {[%clk 0:01:31.5]} 21. Qd3 {[%clk 0:01:40]} 21... Nxa4+ {[%clk 0:01:30.8]}
22. Kc1 {[%clk 0:01:39.8]} 22... Nc5 {[%clk 0:01:29.8]} 23. Qc3 {[%clk
0:01:38.5]} 23... Ne4 {[%clk 0:01:28.5]} 24. Qd3 {[%clk 0:01:21.1]} 24... Nxd2
{[%clk 0:01:25.1]} 25. Kxd2 {[%clk 0:01:20.3]} 25... Rc8 {[%clk 0:01:21.3]} 26.
Qe3 {[%clk 0:01:13.7]} 26... Rac5 {[%clk 0:01:18.4]} 27. Bd3 {[%clk 0:01:13.5]}
27... e5 {[%clk 0:01:01.7]} 28. Qxe5 {[%clk 0:00:48.7]} 28... Ng6 {[%clk
0:01:00.2]} 29. Qe3 {[%clk 0:00:24]} 29... Qf6 {[%clk 0:00:58.9]} 30. g3 {[%clk
0:00:23.8]} 30... h6 {[%clk 0:00:57.3]} 31. h4 {[%clk 0:00:23.1]} 31... Ne5
{[%clk 0:00:56.6]} 32. Re1 {[%clk 0:00:19]} 32... Nxd3 {[%clk 0:00:50.9]} 33.
cxd3 {[%clk 0:00:19]} 33... a5 {[%clk 0:00:45.5]} 34. g4 {[%clk 0:00:13.5]}
34... a4 {[%clk 0:00:41.4]} 35. g5 {[%clk 0:00:13.6]} 35... hxg5 {[%clk
0:00:40.7]} 36. hxg5 {[%clk 0:00:14.5]} 36... Qa6 {[%clk 0:00:39.5]} 37. Qh3
{[%clk 0:00:03.5]} 37... Qa5+ {[%clk 0:00:33.4]} 0-1

[Event "Late-Titled-Tuesday-Blitz-May-14-2024"]
[Site "Chess.com"]
[Date "2024.05.14"]
[Round "3"]
[White "frederiksvane"]
[Black "oskariot"]
[Result "0-1"]
[WhiteElo "2946"]
[BlackElo "2776"]
[TimeControl "180+1"]
[EndTime "14:29:04 PDT"]
[Termination "oskariot won on time"]

1. c4 {[%clk 0:03:00.2]} 1... g6 {[%clk 0:02:59.5]} 2. g3 {[%clk 0:02:58.7]}
2... Bg7 {[%clk 0:02:59.9]} 3. Bg2 {[%clk 0:02:59.2]} 3... e5 {[%clk 0:03:00.6]}
4. Nc3 {[%clk 0:02:58.8]} 4... d6 {[%clk 0:03:01.2]} 5. d3 {[%clk 0:02:56.9]}
5... f5 {[%clk 0:02:59.8]} 6. Nf3 {[%clk 0:02:56]} 6... Nc6 {[%clk 0:03:00.2]}
7. O-O {[%clk 0:02:55.6]} 7... Nf6 {[%clk 0:02:58.6]} 8. Rb1 {[%clk 0:02:55.8]}
8... a5 {[%clk 0:02:49.4]} 9. a3 {[%clk 0:02:55.3]} 9... O-O {[%clk 0:02:47.5]}
10. b4 {[%clk 0:02:55.3]} 10... axb4 {[%clk 0:02:48.4]} 11. axb4 {[%clk
0:02:56.2]} 11... Nd4 {[%clk 0:02:49.3]} 12. Nxd4 {[%clk 0:02:46.2]} 12... exd4
{[%clk 0:02:50.2]} 13. Nb5 {[%clk 0:02:46.6]} 13... Ng4 {[%clk 0:02:18.7]} 14.
h3 {[%clk 0:02:35]} 14... Nh6 {[%clk 0:02:12.1]} 15. Nxd4 {[%clk 0:02:28.8]}
15... f4 {[%clk 0:02:08.5]} 16. Nf3 {[%clk 0:02:18.2]} 16... fxg3 {[%clk
0:02:08.1]} 17. fxg3 {[%clk 0:02:19.1]} 17... Nf5 {[%clk 0:02:06.7]} 18. Qe1
{[%clk 0:02:15]} 18... Ra2 {[%clk 0:02:02.6]} 19. Kh2 {[%clk 0:01:18.7]} 19...
h5 {[%clk 0:01:44.1]} 20. Bg5 {[%clk 0:01:14.1]} 20... Qe8 {[%clk 0:01:37.7]}
21. e4 {[%clk 0:01:06.2]} 21... Nd4 {[%clk 0:01:32]} 22. Nxd4 {[%clk 0:01:06.5]}
22... Bxd4 {[%clk 0:01:32.5]} 23. h4 {[%clk 0:00:23.8]} 23... Bg4 {[%clk
0:01:30.2]} 24. Rxf8+ {[%clk 0:00:14.8]} 24... Qxf8 {[%clk 0:01:28.3]} 25. Bd2
{[%clk 0:00:15.6]} 25... Bf3 {[%clk 0:01:07.1]} 26. Kh1 {[%clk 0:00:02.4]} 26...
Qf6 {[%clk 0:00:46.3]} 27. Qf1 {[%clk 0:00:01.9]} 27... Rxd2 {[%clk 0:00:39.8]}
28. Qxf3 {[%clk 0:00:01.9]} 28... Qxf3 {[%clk 0:00:40.2]} 29. Bxf3 {[%clk
0:00:02.8]} 29... Be5 {[%clk 0:00:41.1]} 30. Bg2 {[%clk 0:00:02.3]} 30... Rxd3
{[%clk 0:00:41.3]} 31. Rf1 {[%clk 0:00:02.4]} 31... Rxg3 {[%clk 0:00:41.2]} 32.
c5 {[%clk 0:00:02.5]} 32... Rg4 {[%clk 0:00:40.5]} 33. Kg1 {[%clk 0:00:02.4]}
33... Rxh4 {[%clk 0:00:40.7]} 34. Rd1 {[%clk 0:00:02.1]} 34... Rg4 {[%clk
0:00:40]} 35. cxd6 {[%clk 0:00:02.3]} 35... cxd6 {[%clk 0:00:39.9]} 36. Rd5
{[%clk 0:00:02.1]} 36... Rf4 {[%clk 0:00:38.8]} 37. Rb5 {[%clk 0:00:00.6]} 37...
Rf7 {[%clk 0:00:39.2]} 0-1

[Event "Late-Titled-Tuesday-Blitz-May-14-2024"]
[Site "Chess.com"]
[Date "2024.05.14"]
[Round "3"]
[White "cthulhuuu"]
[Black "Individoom"]
[Result "0-1"]
[WhiteElo "2479"]
[BlackElo "2801"]
[TimeControl "180+1"]
[EndTime "14:29:05 PDT"]
[Termination "Individoom won by resignation"]

1. e4 {[%clk 0:02:59.8]} 1... g6 {[%clk 0:02:58.9]} 2. d4 {[%clk 0:02:59.9]}
2... Bg7 {[%clk 0:02:59.2]} 3. Nc3 {[%clk 0:03:00.5]} 3... d6 {[%clk 0:02:59.4]}
4. f4 {[%clk 0:03:00.9]} 4... a6 {[%clk 0:02:58.4]} 5. a4 {[%clk 0:03:00.4]}
5... Nc6 {[%clk 0:02:54.9]} 6. Nf3 {[%clk 0:03:00.3]} 6... Nf6 {[%clk
0:02:40.9]} 7. e5 {[%clk 0:02:58.6]} 7... dxe5 {[%clk 0:02:34.9]} 8. dxe5 {[%clk
0:02:58.4]} 8... Qxd1+ {[%clk 0:02:33.7]} 9. Nxd1 {[%clk 0:02:59.3]} 9... Nd5
{[%clk 0:02:24.4]} 10. Bc4 {[%clk 0:02:59.5]} 10... Be6 {[%clk 0:01:56.9]} 11.
b3 {[%clk 0:02:03.5]} 11... h6 {[%clk 0:01:50.4]} 12. O-O {[%clk 0:01:57.4]}
12... O-O-O {[%clk 0:01:42.4]} 13. Bxd5 {[%clk 0:01:36.1]} 13... Rxd5 {[%clk
0:01:32.1]} 14. Ne3 {[%clk 0:01:33.9]} 14... Rd7 {[%clk 0:01:31.8]} 15. Ba3
{[%clk 0:01:31.4]} 15... f6 {[%clk 0:01:19.7]} 16. exf6 {[%clk 0:01:10.9]} 16...
Bxf6 {[%clk 0:01:20.6]} 17. Rad1 {[%clk 0:01:09.5]} 17... Rhd8 {[%clk
0:01:19.6]} 18. c4 {[%clk 0:00:41.1]} 18... Rd3 {[%clk 0:01:06.1]} 19. Nd5
{[%clk 0:00:07.2]} 19... Rxb3 {[%clk 0:01:04.6]} 20. Bc1 {[%clk 0:00:03.6]}
20... Bxd5 {[%clk 0:00:59]} 21. cxd5 {[%clk 0:00:04.5]} 21... Nb4 {[%clk
0:00:58.7]} 22. Ne5 {[%clk 0:00:03.8]} 22... Rxd5 {[%clk 0:00:52.2]} 23. Nxg6
{[%clk 0:00:04.5]} 23... Rxd1 {[%clk 0:00:50.2]} 24. Rxd1 {[%clk 0:00:05.4]}
24... Rb1 {[%clk 0:00:50.2]} 25. Kf2 {[%clk 0:00:05.2]} 25... Rxc1 {[%clk
0:00:49.6]} 26. Rxc1 {[%clk 0:00:02.7]} 26... Nd3+ {[%clk 0:00:49.7]} 27. Kf3
{[%clk 0:00:03.1]} 27... Nxc1 {[%clk 0:00:50.6]} 28. g4 {[%clk 0:00:03.7]} 28...
b5 {[%clk 0:00:50.2]} 29. axb5 {[%clk 0:00:03.7]} 29... axb5 {[%clk 0:00:50.6]}
30. h4 {[%clk 0:00:04.6]} 30... b4 {[%clk 0:00:49.1]} 31. g5 {[%clk 0:00:04.9]}
31... hxg5 {[%clk 0:00:48.7]} 32. fxg5 {[%clk 0:00:04.9]} 32... b3 {[%clk
0:00:45.3]} 33. gxf6 {[%clk 0:00:04.1]} 33... exf6 {[%clk 0:00:45.7]} 34. Ne7+
{[%clk 0:00:03.9]} 34... Kb7 {[%clk 0:00:40.8]} 35. Nd5 {[%clk 0:00:04.8]} 35...
Na2 {[%clk 0:00:40.5]} 36. Ne3 {[%clk 0:00:03.9]} 36... b2 {[%clk 0:00:39.7]}
37. Nc4 {[%clk 0:00:04.5]} 37... b1=Q {[%clk 0:00:39.7]} 38. Na5+ {[%clk
0:00:05]} 0-1